[Event "*** Titled Tuesday Blitz"]
[Site "Chess.com"]
[Date "2020.05.12"]
[Round "4"]
[White "baby_leo"]
[Black "albano87"]
[Result "0-1"]
[WhiteElo "2081"]
[BlackElo "2302"]
[TimeControl "180+1"]
[EndTime "10:38:18 PDT"]
[Termination "albano87 won by resignation"]

1. Nf3 {[%clk 0:03:00.9]} 1... Nf6 {[%clk 0:02:59.4]} 2. c4 {[%clk 0:02:58.7]}
2... c5 {[%clk 0:02:58.8]} 3. Nc3 {[%clk 0:02:56.9]} 3... Nc6 {[%clk 0:02:53.2]}
4. d4 {[%clk 0:02:52.4]} 4... cxd4 {[%clk 0:02:52]} 5. Nxd4 {[%clk 0:02:53]}
5... g6 {[%clk 0:02:45]} 6. e4 {[%clk 0:02:51.3]} 6... Bg7 {[%clk 0:02:43]} 7.
Be2 {[%clk 0:02:50.2]} 7... O-O {[%clk 0:02:41.3]} 8. Be3 {[%clk 0:02:48.1]}
8... d6 {[%clk 0:02:29.7]} 9. O-O {[%clk 0:02:46.6]} 9... a6 {[%clk 0:02:21.4]}
10. f3 {[%clk 0:02:43.1]} 10... Qc7 {[%clk 0:02:20.9]} 11. b3 {[%clk 0:02:39.9]}
11... Nxd4 {[%clk 0:02:04.3]} 12. Bxd4 {[%clk 0:02:39]} 12... h5 {[%clk
0:02:01.6]} 13. Rc1 {[%clk 0:02:19.1]} 13... Be6 {[%clk 0:01:41.1]} 14. Nd5
{[%clk 0:02:09.9]} 14... Bxd5 {[%clk 0:01:37.9]} 15. cxd5 {[%clk 0:02:07.5]}
15... Qd7 {[%clk 0:01:36.9]} 16. Qd2 {[%clk 0:01:54.3]} 16... Rfc8 {[%clk
0:01:33.9]} 17. a4 {[%clk 0:01:33.5]} 17... h4 {[%clk 0:01:27.9]} 18. h3 {[%clk
0:01:28.7]} 18... Nh5 {[%clk 0:01:20.6]} 19. Bxg7 {[%clk 0:01:21.5]} 19... Kxg7
{[%clk 0:01:21.5]} 20. f4 {[%clk 0:01:16.3]} 20... Ng3 {[%clk 0:01:13]} 21. Rfe1
{[%clk 0:00:51.4]} 21... Rxc1 {[%clk 0:00:59.9]} 22. Rxc1 {[%clk 0:00:47.6]}
22... Rc8 {[%clk 0:00:58.3]} 23. Rc4 {[%clk 0:00:29.3]} 23... Rxc4 {[%clk
0:00:39.5]} 24. bxc4 {[%clk 0:00:22]} 24... Qc7 {[%clk 0:00:36.5]} 25. Qd4+
{[%clk 0:00:21]} 25... f6 {[%clk 0:00:36]} 26. Bd3 {[%clk 0:00:18.8]} 26... Qa5
{[%clk 0:00:27.4]} 27. e5 {[%clk 0:00:16.1]} 27... Qe1+ {[%clk 0:00:23.6]} 0-1

[Event "*** Titled Tuesday Blitz"]
[Site "Chess.com"]
[Date "2020.05.12"]
[Round "4"]
[White "nubair1198"]
[Black "Ceejay271"]
[Result "1/2-1/2"]
[WhiteElo "2692"]
[BlackElo "2357"]
[TimeControl "180+1"]
[EndTime "10:38:24 PDT"]
[Termination "Game drawn by repetition"]

1. Nf3 {[%clk 0:03:00.9]} 1... d5 {[%clk 0:02:59.1]} 2. d4 {[%clk 0:02:53.4]}
2... Nf6 {[%clk 0:02:58.5]} 3. c4 {[%clk 0:02:47.6]} 3... e6 {[%clk 0:02:57.4]}
4. Nc3 {[%clk 0:02:46.9]} 4... Nbd7 {[%clk 0:02:56.1]} 5. Bg5 {[%clk 0:02:45.9]}
5... Be7 {[%clk 0:02:54.9]} 6. e3 {[%clk 0:02:45.9]} 6... h6 {[%clk 0:02:54.3]}
7. Bh4 {[%clk 0:02:46]} 7... O-O {[%clk 0:02:54.6]} 8. Rc1 {[%clk 0:02:43.9]}
8... c5 {[%clk 0:02:54.6]} 9. cxd5 {[%clk 0:02:43.5]} 9... Nxd5 {[%clk
0:02:55.1]} 10. Bxe7 {[%clk 0:02:41.6]} 10... Nxe7 {[%clk 0:02:54.6]} 11. dxc5
{[%clk 0:02:34.8]} 11... Nxc5 {[%clk 0:02:53.1]} 12. b4 {[%clk 0:02:35.2]} 12...
Nd7 {[%clk 0:02:49.2]} 13. Be2 {[%clk 0:02:30.1]} 13... b6 {[%clk 0:02:33.9]}
14. O-O {[%clk 0:02:23.1]} 14... Bb7 {[%clk 0:02:33]} 15. Qa4 {[%clk 0:02:22.5]}
15... Nf6 {[%clk 0:02:28.2]} 16. Rfd1 {[%clk 0:02:21.5]} 16... Qb8 {[%clk
0:02:26.8]} 17. Rd4 {[%clk 0:02:10.3]} 17... Rc8 {[%clk 0:02:21]} 18. Qd1 {[%clk
0:02:07.8]} 18... Ned5 {[%clk 0:02:16.7]} 19. Nxd5 {[%clk 0:02:02]} 19... Bxd5
{[%clk 0:02:07]} 20. a3 {[%clk 0:01:59.1]} 20... Rxc1 {[%clk 0:02:04.5]} 21.
Qxc1 {[%clk 0:02:00]} 21... Qc8 {[%clk 0:02:03.3]} 22. Qb2 {[%clk 0:01:55.7]}
22... Qc7 {[%clk 0:01:55.9]} 23. Ba6 {[%clk 0:01:49.8]} 23... Rd8 {[%clk
0:01:53.9]} 24. Ne1 {[%clk 0:01:41.6]} 24... e5 {[%clk 0:01:45]} 25. Rd1 {[%clk
0:01:38.6]} 25... e4 {[%clk 0:01:27]} 26. Qd2 {[%clk 0:01:22.3]} 26... Ng4
{[%clk 0:01:18.9]} 27. g3 {[%clk 0:01:22.4]} 27... Ne5 {[%clk 0:01:17.1]} 28.
Be2 {[%clk 0:01:18.1]} 28... Rd7 {[%clk 0:01:12]} 29. Qc1 {[%clk 0:01:11.7]}
29... Qxc1 {[%clk 0:01:03.2]} 30. Rxc1 {[%clk 0:01:12.6]} 30... f5 {[%clk
0:00:59]} 31. Rd1 {[%clk 0:01:05.6]} 31... Be6 {[%clk 0:00:55.5]} 32. Rxd7
{[%clk 0:01:04.5]} 32... Bxd7 {[%clk 0:00:54.8]} 33. Nc2 {[%clk 0:01:05.4]}
33... Kf7 {[%clk 0:00:52.4]} 34. Nd4 {[%clk 0:01:04]} 34... g6 {[%clk
0:00:51.3]} 35. h4 {[%clk 0:00:59.7]} 35... h5 {[%clk 0:00:50]} 36. Kf1 {[%clk
0:00:59.5]} 36... Ke7 {[%clk 0:00:50.4]} 37. Ke1 {[%clk 0:00:59.6]} 37... Kd6
{[%clk 0:00:50.9]} 38. Kd2 {[%clk 0:01:00.1]} 38... Kd5 {[%clk 0:00:50.3]} 39.
Kc3 {[%clk 0:00:59.8]} 39... Be8 {[%clk 0:00:44.8]} 40. Ba6 {[%clk 0:00:58.9]}
40... Bd7 {[%clk 0:00:42.9]} 41. Be2 {[%clk 0:00:57.9]} 41... Be8 {[%clk
0:00:41.8]} 42. Kb3 {[%clk 0:00:55.2]} 42... Bd7 {[%clk 0:00:38.2]} 43. Kb2
{[%clk 0:00:50.2]} 43... Be8 {[%clk 0:00:32.3]} 44. Kc2 {[%clk 0:00:41.4]} 44...
Ba4+ {[%clk 0:00:30.9]} 45. Kd2 {[%clk 0:00:40.9]} 45... Bd7 {[%clk 0:00:31.8]}
46. Kc3 {[%clk 0:00:32.5]} 1/2-1/2

[Event "*** Titled Tuesday Blitz"]
[Site "Chess.com"]
[Date "2020.05.12"]
[Round "4"]
[White "VladDobrov"]
[Black "IriBu"]
[Result "1-0"]
[WhiteElo "2769"]
[BlackElo "2540"]
[TimeControl "180+1"]
[EndTime "10:38:25 PDT"]
[Termination "VladDobrov won by checkmate"]

1. d4 {[%clk 0:03:00.9]} 1... Nf6 {[%clk 0:02:59.2]} 2. c4 {[%clk 0:03:01.5]}
2... g6 {[%clk 0:02:59.3]} 3. g3 {[%clk 0:03:01.5]} 3... Bg7 {[%clk 0:02:59.7]}
4. Bg2 {[%clk 0:03:02.4]} 4... O-O {[%clk 0:03:00]} 5. Nc3 {[%clk 0:03:02.5]}
5... d6 {[%clk 0:03:00.1]} 6. Nf3 {[%clk 0:03:03]} 6... c6 {[%clk 0:03:00.4]} 7.
O-O {[%clk 0:03:03.9]} 7... Bf5 {[%clk 0:03:00.4]} 8. Nh4 {[%clk 0:03:02.8]}
8... Be6 {[%clk 0:02:59.5]} 9. d5 {[%clk 0:03:03.1]} 9... cxd5 {[%clk
0:03:00.1]} 10. cxd5 {[%clk 0:03:03]} 10... Bd7 {[%clk 0:02:59.6]} 11. h3 {[%clk
0:03:03.6]} 11... Na6 {[%clk 0:02:59.3]} 12. Be3 {[%clk 0:03:03.5]} 12... Qa5
{[%clk 0:02:58.4]} 13. a3 {[%clk 0:03:01.7]} 13... Rfc8 {[%clk 0:02:57.3]} 14.
Rc1 {[%clk 0:03:01.4]} 14... Nc7 {[%clk 0:02:45.3]} 15. Bd4 {[%clk 0:02:50.1]}
15... Nb5 {[%clk 0:02:39.1]} 16. Nxb5 {[%clk 0:02:47.4]} 16... Bxb5 {[%clk
0:02:38]} 17. Rc3 {[%clk 0:02:43]} 17... Qa6 {[%clk 0:02:36.6]} 18. Re1 {[%clk
0:02:41.4]} 18... Rxc3 {[%clk 0:02:34.1]} 19. Bxc3 {[%clk 0:02:42.3]} 19... Rc8
{[%clk 0:02:33.7]} 20. Nf3 {[%clk 0:02:28.2]} 20... Bc4 {[%clk 0:02:29.5]} 21.
e4 {[%clk 0:02:26.9]} 21... Nd7 {[%clk 0:02:27]} 22. Bxg7 {[%clk 0:02:24.9]}
22... Kxg7 {[%clk 0:02:27.9]} 23. h4 {[%clk 0:01:43.9]} 23... Qb6 {[%clk
0:02:00.7]} 24. Bh3 {[%clk 0:01:31.3]} 24... Rc7 {[%clk 0:01:54.4]} 25. Bxd7
{[%clk 0:01:31]} 25... Rxd7 {[%clk 0:01:53.8]} 26. Qd2 {[%clk 0:00:55.2]} 26...
Bb5 {[%clk 0:01:52.5]} 27. h5 {[%clk 0:00:50.6]} 27... f6 {[%clk 0:01:46.3]} 28.
Kg2 {[%clk 0:00:47.8]} 28... Rc7 {[%clk 0:01:44.5]} 29. hxg6 {[%clk 0:00:45.6]}
29... hxg6 {[%clk 0:01:42.6]} 30. Rh1 {[%clk 0:00:46.5]} 30... Rc8 {[%clk
0:00:57]} 31. Qh6+ {[%clk 0:00:43.2]} 31... Kf7 {[%clk 0:00:57]} 32. Qh7+ {[%clk
0:00:43.8]} 32... Ke8 {[%clk 0:00:57.5]} 33. Qxg6+ {[%clk 0:00:44.4]} 33... Kd7
{[%clk 0:00:56.2]} 34. Qf5+ {[%clk 0:00:41.7]} 34... Kc7 {[%clk 0:00:51.4]} 35.
Rc1+ {[%clk 0:00:40.8]} 35... Bc6 {[%clk 0:00:51.8]} 36. dxc6 {[%clk 0:00:40.2]}
36... bxc6 {[%clk 0:00:52.7]} 37. Qe6 {[%clk 0:00:36.8]} 37... Re8 {[%clk
0:00:52]} 38. b4 {[%clk 0:00:36.3]} 38... Qa6 {[%clk 0:00:49.6]} 39. Nd4 {[%clk
0:00:35]} 39... Qxa3 {[%clk 0:00:48.7]} 40. Rxc6+ {[%clk 0:00:34.6]} 40... Kb8
{[%clk 0:00:48.9]} 41. Qd7 {[%clk 0:00:30.1]} 41... Rg8 {[%clk 0:00:48.6]} 42.
Rc7 {[%clk 0:00:19]} 42... Rxg3+ {[%clk 0:00:45.6]} 43. fxg3 {[%clk 0:00:19.9]}
43... Qb2+ {[%clk 0:00:41.4]} 44. Kh3 {[%clk 0:00:20]} 44... Qxd4 {[%clk
0:00:41.4]} 45. Qc8# {[%clk 0:00:19.9]} 1-0

[Event "*** Titled Tuesday Blitz"]
[Site "Chess.com"]
[Date "2020.05.12"]
[Round "4"]
[White "bilelou"]
[Black "bancsoo"]
[Result "0-1"]
[WhiteElo "2516"]
[BlackElo "2762"]
[TimeControl "180+1"]
[EndTime "10:38:25 PDT"]
[Termination "bancsoo won on time"]

1. e4 {[%clk 0:03:00.9]} 1... d5 {[%clk 0:03:00]} 2. exd5 {[%clk 0:03:00.4]}
2... Qxd5 {[%clk 0:03:00.2]} 3. Nf3 {[%clk 0:03:00.8]} 3... Bg4 {[%clk
0:02:54.6]} 4. Be2 {[%clk 0:03:00.2]} 4... Nc6 {[%clk 0:02:53.5]} 5. Nc3 {[%clk
0:03:00.1]} 5... Qd6 {[%clk 0:02:46.8]} 6. h3 {[%clk 0:02:53.9]} 6... Bh5 {[%clk
0:02:45.7]} 7. O-O {[%clk 0:02:46.7]} 7... O-O-O {[%clk 0:02:44.6]} 8. Rb1
{[%clk 0:02:36.2]} 8... e5 {[%clk 0:02:39.9]} 9. d3 {[%clk 0:02:33.8]} 9... f5
{[%clk 0:02:29.4]} 10. b4 {[%clk 0:02:27.9]} 10... Nf6 {[%clk 0:02:28]} 11. b5
{[%clk 0:02:25.8]} 11... Bxf3 {[%clk 0:02:27.9]} 12. Bxf3 {[%clk 0:02:23.7]}
12... Nd4 {[%clk 0:02:28.6]} 13. Be3 {[%clk 0:02:20.2]} 13... g5 {[%clk
0:02:07.7]} 14. Bxg5 {[%clk 0:02:01.2]} 14... Rg8 {[%clk 0:02:07.6]} 15. Be3
{[%clk 0:01:59.2]} 15... Be7 {[%clk 0:01:31.1]} 16. a4 {[%clk 0:01:42.2]} 16...
Rg6 {[%clk 0:01:30]} 17. Bxd4 {[%clk 0:01:40]} 17... Qxd4 {[%clk 0:01:29.7]} 18.
Ne2 {[%clk 0:01:38.9]} 18... Qh4 {[%clk 0:01:09.1]} 19. Ng3 {[%clk 0:01:23.2]}
19... Rg5 {[%clk 0:01:09]} 20. Qe2 {[%clk 0:00:40.2]} 20... Bd6 {[%clk
0:01:07.7]} 21. a5 {[%clk 0:00:27.4]} 21... Rdg8 {[%clk 0:00:56.7]} 22. b6
{[%clk 0:00:18.4]} 22... cxb6 {[%clk 0:00:44.6]} 23. axb6 {[%clk 0:00:19.3]}
23... a6 {[%clk 0:00:45.3]} 24. Bxb7+ {[%clk 0:00:09.3]} 24... Kxb7 {[%clk
0:00:41.5]} 25. Qf3+ {[%clk 0:00:09.5]} 25... e4 {[%clk 0:00:41]} 26. dxe4
{[%clk 0:00:10.4]} 26... Nxe4 {[%clk 0:00:33.7]} 27. Rfd1 {[%clk 0:00:04.1]}
27... Bxg3 {[%clk 0:00:33.2]} 28. Rd7+ {[%clk 0:00:03.5]} 28... Kb8 {[%clk
0:00:33.4]} 29. Ra7 {[%clk 0:00:01.6]} 29... Bxf2+ {[%clk 0:00:29.7]} 30. Kh1
{[%clk 0:00:02.2]} 30... Rxg2 {[%clk 0:00:23]} 0-1

[Event "*** Titled Tuesday Blitz"]
[Site "Chess.com"]
[Date "2020.05.12"]
[Round "4"]
[White "FelixJoseYnojosa"]
[Black "SGchess01"]
[Result "1-0"]
[WhiteElo "2614"]
[BlackElo "2762"]
[TimeControl "180+1"]
[EndTime "10:38:26 PDT"]
[Termination "FelixJoseYnojosa won by resignation"]

1. e4 {[%clk 0:03:00.9]} 1... g6 {[%clk 0:02:59.4]} 2. d4 {[%clk 0:03:00.8]}
2... Bg7 {[%clk 0:03:00.3]} 3. c4 {[%clk 0:03:00.8]} 3... d6 {[%clk 0:03:00.3]}
4. Nc3 {[%clk 0:03:00.9]} 4... Nc6 {[%clk 0:03:00.9]} 5. Nf3 {[%clk 0:03:01]}
5... Bg4 {[%clk 0:02:59.7]} 6. d5 {[%clk 0:03:00.3]} 6... Nd4 {[%clk 0:02:56.7]}
7. Be2 {[%clk 0:02:59.8]} 7... Bxf3 {[%clk 0:02:56.4]} 8. gxf3 {[%clk
0:03:00.2]} 8... c5 {[%clk 0:02:54.6]} 9. dxc6 {[%clk 0:02:56.3]} 9... bxc6
{[%clk 0:02:52.2]} 10. Be3 {[%clk 0:02:55.5]} 10... c5 {[%clk 0:02:52.3]} 11.
Qa4+ {[%clk 0:02:55.6]} 11... Qd7 {[%clk 0:02:51.3]} 12. Qxd7+ {[%clk
0:02:55.2]} 12... Kxd7 {[%clk 0:02:52.2]} 13. Rd1 {[%clk 0:02:53.2]} 13... e5
{[%clk 0:02:50.4]} 14. f4 {[%clk 0:02:50.4]} 14... exf4 {[%clk 0:02:48.4]} 15.
Bxf4 {[%clk 0:02:47.2]} 15... Ne7 {[%clk 0:02:46.2]} 16. b3 {[%clk 0:01:57.4]}
16... Nec6 {[%clk 0:02:39.9]} 17. O-O {[%clk 0:01:50.6]} 17... Rae8 {[%clk
0:02:28.6]} 18. Bg4+ {[%clk 0:01:45]} 18... f5 {[%clk 0:02:14.3]} 19. exf5
{[%clk 0:01:44.6]} 19... gxf5 {[%clk 0:02:15.2]} 20. Bh3 {[%clk 0:01:43.8]}
20... Be5 {[%clk 0:02:04.6]} 21. Bg3 {[%clk 0:01:40.4]} 21... Rhg8 {[%clk
0:01:55.2]} 22. Kh1 {[%clk 0:01:37.9]} 22... Kc7 {[%clk 0:01:42.7]} 23. Nd5+
{[%clk 0:01:32.9]} 23... Kb8 {[%clk 0:01:42.1]} 24. Bxe5 {[%clk 0:01:25.3]}
24... Rxe5 {[%clk 0:01:43]} 25. Rg1 {[%clk 0:01:14.5]} 25... Rg6 {[%clk
0:01:42.8]} 26. Nf4 {[%clk 0:01:07.6]} 26... Rh6 {[%clk 0:01:11.5]} 27. Rg8+
{[%clk 0:01:04.5]} 27... Kb7 {[%clk 0:01:10.6]} 28. Bg2 {[%clk 0:01:01.7]} 28...
Rh4 {[%clk 0:01:03.6]} 29. Nd5 {[%clk 0:00:48.2]} 29... Rg4 {[%clk 0:00:47.5]}
30. Rh8 {[%clk 0:00:41.2]} 30... Rg7 {[%clk 0:00:47.1]} 31. b4 {[%clk 0:00:41]}
31... cxb4 {[%clk 0:00:20]} 32. Nxb4 {[%clk 0:00:37.8]} 32... Rge7 {[%clk
0:00:18.8]} 33. h4 {[%clk 0:00:32.8]} 33... f4 {[%clk 0:00:14.9]} 34. Rxd4
{[%clk 0:00:31.5]} 1-0

[Event "*** Titled Tuesday Blitz"]
[Site "Chess.com"]
[Date "2020.05.12"]
[Round "4"]
[White "Kate1606"]
[Black "Jenia84"]
[Result "1/2-1/2"]
[WhiteElo "2061"]
[BlackElo "2253"]
[TimeControl "180+1"]
[EndTime "10:38:26 PDT"]
[Termination "Game drawn by repetition"]

1. e4 {[%clk 0:02:53.3]} 1... e5 {[%clk 0:02:59.2]} 2. Nf3 {[%clk 0:02:53.2]}
2... Nc6 {[%clk 0:02:59.7]} 3. d4 {[%clk 0:02:53.5]} 3... exd4 {[%clk
0:02:58.6]} 4. Bc4 {[%clk 0:02:53.4]} 4... Bc5 {[%clk 0:02:54.3]} 5. c3 {[%clk
0:02:50.3]} 5... Nf6 {[%clk 0:02:49.1]} 6. cxd4 {[%clk 0:02:49.7]} 6... Bb4+
{[%clk 0:02:49.2]} 7. Bd2 {[%clk 0:02:50.2]} 7... Bxd2+ {[%clk 0:02:48]} 8.
Nbxd2 {[%clk 0:02:51]} 8... d5 {[%clk 0:02:48.3]} 9. exd5 {[%clk 0:02:50.8]}
9... Nxd5 {[%clk 0:02:48.8]} 10. Qb3 {[%clk 0:02:49.6]} 10... Nce7 {[%clk
0:02:33.6]} 11. O-O {[%clk 0:02:45.5]} 11... O-O {[%clk 0:02:31.3]} 12. Rfe1
{[%clk 0:02:42.7]} 12... Be6 {[%clk 0:02:18.2]} 13. Ng5 {[%clk 0:02:26.8]} 13...
Bf5 {[%clk 0:02:13.7]} 14. Rxe7 {[%clk 0:02:10.2]} 14... Qxe7 {[%clk 0:02:08.5]}
15. Nxf7 {[%clk 0:02:01.3]} 15... c6 {[%clk 0:01:59.3]} 16. Ne5 {[%clk
0:01:26.2]} 16... Rad8 {[%clk 0:01:57]} 17. Re1 {[%clk 0:01:13.2]} 17... Qh4
{[%clk 0:01:47.7]} 18. Ndf3 {[%clk 0:01:07.7]} 18... Qh5 {[%clk 0:01:46.2]} 19.
Qxb7 {[%clk 0:00:52.9]} 19... Kh8 {[%clk 0:01:26.6]} 20. Nxc6 {[%clk 0:00:27.3]}
20... Rd7 {[%clk 0:01:15.9]} 21. Qb3 {[%clk 0:00:17.2]} 21... Nf4 {[%clk
0:01:14]} 22. Nce5 {[%clk 0:00:15.2]} 22... Rdd8 {[%clk 0:00:57.4]} 23. Nf7+
{[%clk 0:00:13.1]} 23... Rxf7 {[%clk 0:00:55.9]} 24. Bxf7 {[%clk 0:00:12.9]}
24... Qg4 {[%clk 0:00:55.6]} 25. g3 {[%clk 0:00:02.5]} 25... Nh3+ {[%clk
0:00:38]} 26. Kg2 {[%clk 0:00:02.5]} 26... Nf4+ {[%clk 0:00:33.5]} 27. Kg1
{[%clk 0:00:02.2]} 27... Nh3+ {[%clk 0:00:18.9]} 28. Kg2 {[%clk 0:00:02.7]}
28... Nf4+ {[%clk 0:00:18.4]} 29. Kg1 {[%clk 0:00:03.1]} 1/2-1/2

[Event "*** Titled Tuesday Blitz"]
[Site "Chess.com"]
[Date "2020.05.12"]
[Round "4"]
[White "ZEN-22"]
[Black "Susal_De_Silva"]
[Result "1-0"]
[WhiteElo "2434"]
[BlackElo "2243"]
[TimeControl "180+1"]
[EndTime "10:38:27 PDT"]
[Termination "ZEN-22 won by resignation"]

1. e4 {[%clk 0:03:00.9]} 1... e5 {[%clk 0:02:59.6]} 2. Nc3 {[%clk 0:02:59]} 2...
Nf6 {[%clk 0:02:59.1]} 3. f4 {[%clk 0:02:57.8]} 3... d5 {[%clk 0:02:58.7]} 4.
fxe5 {[%clk 0:02:57.3]} 4... Nxe4 {[%clk 0:02:58.8]} 5. Qf3 {[%clk 0:02:56.7]}
5... Nxc3 {[%clk 0:02:57.7]} 6. bxc3 {[%clk 0:02:53.9]} 6... Be6 {[%clk
0:02:54.7]} 7. Rb1 {[%clk 0:02:51.1]} 7... Nd7 {[%clk 0:02:51.4]} 8. d4 {[%clk
0:02:49.1]} 8... Nb6 {[%clk 0:02:46.9]} 9. Bd3 {[%clk 0:02:47.2]} 9... Qd7
{[%clk 0:02:45.7]} 10. a4 {[%clk 0:02:41.9]} 10... c6 {[%clk 0:02:05.8]} 11. Ne2
{[%clk 0:02:18.4]} 11... Nxa4 {[%clk 0:02:01]} 12. O-O {[%clk 0:02:17.7]} 12...
Be7 {[%clk 0:01:59.6]} 13. Bd2 {[%clk 0:02:14.1]} 13... O-O {[%clk 0:01:56.7]}
14. Nf4 {[%clk 0:02:13.9]} 14... g6 {[%clk 0:01:50.8]} 15. Nxe6 {[%clk
0:01:52.8]} 15... fxe6 {[%clk 0:01:51.7]} 16. Qg3 {[%clk 0:01:52.9]} 16... Kg7
{[%clk 0:01:30]} 17. h4 {[%clk 0:01:51.6]} 17... Rxf1+ {[%clk 0:01:26.3]} 18.
Rxf1 {[%clk 0:01:50.1]} 18... Rf8 {[%clk 0:01:26.2]} 19. Ra1 {[%clk 0:01:49.1]}
19... Nb2 {[%clk 0:01:12.8]} 20. Rxa7 {[%clk 0:01:46]} 20... Nxd3 {[%clk
0:01:12.8]} 21. cxd3 {[%clk 0:01:45.7]} 21... c5 {[%clk 0:01:10.5]} 22. h5
{[%clk 0:01:39.7]} 22... cxd4 {[%clk 0:01:04]} 23. cxd4 {[%clk 0:01:39.2]} 23...
Rf5 {[%clk 0:00:59.8]} 24. h6+ {[%clk 0:01:15.4]} 24... Kf7 {[%clk 0:00:59.2]}
25. Qe3 {[%clk 0:01:14.6]} 25... Qb5 {[%clk 0:00:44.5]} 26. g4 {[%clk
0:01:10.4]} 26... Bg5 {[%clk 0:00:32.8]} 27. Qe2 {[%clk 0:01:05.3]} 27... Qb1+
{[%clk 0:00:31.5]} 28. Qe1 {[%clk 0:00:59.3]} 28... Qb6 {[%clk 0:00:15.2]} 29.
gxf5 {[%clk 0:00:56.7]} 29... Bxd2 {[%clk 0:00:14.4]} 30. fxg6+ {[%clk
0:00:48.7]} 30... hxg6 {[%clk 0:00:12.8]} 31. Qf2+ {[%clk 0:00:40.2]} 31... Ke7
{[%clk 0:00:04.3]} 32. Qf6+ {[%clk 0:00:38.1]} 32... Kd7 {[%clk 0:00:04.7]} 33.
Qf7+ {[%clk 0:00:37.8]} 33... Kc6 {[%clk 0:00:04.8]} 34. Qxe6+ {[%clk
0:00:36.7]} 34... Kb5 {[%clk 0:00:05.3]} 35. Qxd5+ {[%clk 0:00:36.7]} 1-0

[Event "*** Titled Tuesday Blitz"]
[Site "Chess.com"]
[Date "2020.05.12"]
[Round "4"]
[White "grunbergmihai"]
[Black "beto-betun"]
[Result "1-0"]
[WhiteElo "2399"]
[BlackElo "2123"]
[TimeControl "180+1"]
[EndTime "10:38:27 PDT"]
[Termination "grunbergmihai won on time"]

1. e4 {[%clk 0:03:00.9]} 1... c5 {[%clk 0:02:59.7]} 2. Nf3 {[%clk 0:02:56]} 2...
d6 {[%clk 0:02:59.8]} 3. Nc3 {[%clk 0:02:55.9]} 3... Nc6 {[%clk 0:02:59.6]} 4.
g3 {[%clk 0:02:55.7]} 4... g6 {[%clk 0:02:59.6]} 5. Bg2 {[%clk 0:02:55.6]} 5...
Bg7 {[%clk 0:02:59.7]} 6. O-O {[%clk 0:02:56.5]} 6... e6 {[%clk 0:02:59.7]} 7.
d3 {[%clk 0:02:55.7]} 7... Nge7 {[%clk 0:02:59.2]} 8. Ne2 {[%clk 0:02:54.8]}
8... O-O {[%clk 0:02:58]} 9. c3 {[%clk 0:02:55.2]} 9... Rb8 {[%clk 0:02:58]} 10.
a4 {[%clk 0:02:54.9]} 10... a6 {[%clk 0:02:55.2]} 11. d4 {[%clk 0:02:54.9]}
11... b5 {[%clk 0:02:37.7]} 12. axb5 {[%clk 0:02:54.1]} 12... axb5 {[%clk
0:02:37.4]} 13. h4 {[%clk 0:02:50.7]} 13... b4 {[%clk 0:02:33.9]} 14. h5 {[%clk
0:02:48.4]} 14... Qb6 {[%clk 0:02:10.5]} 15. h6 {[%clk 0:02:40.5]} 15... Bh8
{[%clk 0:01:58.4]} 16. Bg5 {[%clk 0:02:38.4]} 16... Re8 {[%clk 0:01:54.9]} 17.
Qd2 {[%clk 0:02:24.5]} 17... bxc3 {[%clk 0:01:52.3]} 18. bxc3 {[%clk 0:02:24.4]}
18... cxd4 {[%clk 0:01:40.1]} 19. cxd4 {[%clk 0:02:23.5]} 19... Qb4 {[%clk
0:01:34.3]} 20. Qe3 {[%clk 0:02:17.5]} 20... f6 {[%clk 0:01:25.6]} 21. Bh4
{[%clk 0:02:10.7]} 21... g5 {[%clk 0:01:13.3]} 22. Nxg5 {[%clk 0:02:03]} 22...
fxg5 {[%clk 0:01:14.2]} 23. Qxg5+ {[%clk 0:02:01.5]} 23... Ng6 {[%clk
0:01:13.8]} 24. Nf4 {[%clk 0:01:55.9]} 24... Qb5 {[%clk 0:00:58.7]} 25. d5
{[%clk 0:01:51.2]} 25... Ne5 {[%clk 0:00:57.2]} 26. Nxe6 {[%clk 0:01:36.9]}
26... Bxe6 {[%clk 0:00:56.7]} 27. dxe6 {[%clk 0:01:36.6]} 27... Qb6 {[%clk
0:00:46.1]} 28. Kh1 {[%clk 0:01:28]} 28... Qd8 {[%clk 0:00:42.3]} 29. Qxd8
{[%clk 0:01:25.2]} 29... Rbxd8 {[%clk 0:00:42.9]} 30. Bxd8 {[%clk 0:01:24.8]}
30... Rxd8 {[%clk 0:00:43.4]} 31. Ra7 {[%clk 0:01:18.6]} 31... Bf6 {[%clk
0:00:36.3]} 32. f4 {[%clk 0:01:16]} 32... Nc6 {[%clk 0:00:31.7]} 33. Rc7 {[%clk
0:01:12.1]} 33... Nce7 {[%clk 0:00:17.8]} 34. Rd1 {[%clk 0:01:05.7]} 34... Nf8
{[%clk 0:00:14.5]} 35. e5 {[%clk 0:01:03]} 35... Nxe6 {[%clk 0:00:09]} 36. exf6
{[%clk 0:00:58]} 36... Nxc7 {[%clk 0:00:07.2]} 37. fxe7 {[%clk 0:00:57.8]} 37...
Rd7 {[%clk 0:00:07.8]} 38. Bh3 {[%clk 0:00:48.9]} 38... Rxe7 {[%clk 0:00:06.9]}
39. Rxd6 {[%clk 0:00:49.3]} 39... Kf7 {[%clk 0:00:06.3]} 40. Bf5 {[%clk
0:00:46]} 1-0

[Event "*** Titled Tuesday Blitz"]
[Site "Chess.com"]
[Date "2020.05.12"]
[Round "4"]
[White "Lunow"]
[Black "miruna_daria28"]
[Result "0-1"]
[WhiteElo "2063"]
[BlackElo "2262"]
[TimeControl "180+1"]
[EndTime "10:38:27 PDT"]
[Termination "miruna_daria28 won on time"]

1. c4 {[%clk 0:03:00.9]} 1... Nf6 {[%clk 0:02:45.5]} 2. g3 {[%clk 0:03:00.2]}
2... e6 {[%clk 0:02:38.7]} 3. Bg2 {[%clk 0:02:59.5]} 3... c5 {[%clk 0:02:38.2]}
4. Nf3 {[%clk 0:02:57.6]} 4... Nc6 {[%clk 0:02:23.2]} 5. O-O {[%clk 0:02:57.2]}
5... Be7 {[%clk 0:02:16.4]} 6. Nc3 {[%clk 0:02:56.6]} 6... O-O {[%clk 0:02:16]}
7. d4 {[%clk 0:02:56.5]} 7... cxd4 {[%clk 0:02:14.6]} 8. Nxd4 {[%clk 0:02:56.7]}
8... a6 {[%clk 0:02:05.2]} 9. b3 {[%clk 0:02:53.7]} 9... Qc7 {[%clk 0:01:50.1]}
10. Bb2 {[%clk 0:02:51.4]} 10... b6 {[%clk 0:01:19.8]} 11. Rc1 {[%clk
0:02:46.4]} 11... Bb7 {[%clk 0:01:17.5]} 12. Nd5 {[%clk 0:02:44.5]} 12... exd5
{[%clk 0:00:57.2]} 13. cxd5 {[%clk 0:02:45.4]} 13... Rac8 {[%clk 0:00:15.8]} 14.
Nf5 {[%clk 0:02:38.2]} 14... Bd8 {[%clk 0:00:12.2]} 15. Qd2 {[%clk 0:02:26.5]}
15... Qb8 {[%clk 0:00:09.9]} 16. dxc6 {[%clk 0:02:08.6]} 16... Bxc6 {[%clk
0:00:09.6]} 17. Qg5 {[%clk 0:02:06.2]} 17... g6 {[%clk 0:00:04.6]} 18. Nh6+
{[%clk 0:01:32.4]} 18... Kg7 {[%clk 0:00:03.8]} 19. Ng4 {[%clk 0:01:31.4]} 19...
Bxg2 {[%clk 0:00:01.6]} 0-1